{"text_format":"2","workbook":"xlsx","n_sheets":1,"sheets":["Árazótábla"],"not_rendered":{"charts":0,"images":0,"macros":0,"external_links":1,"defined_names":0,"comments":0,"pivot_tables":0},"unopened":[],"bounds":{"document_bytes":16777216,"sheet_cells":100000,"run_cost":"one","rows_first":2000,"rows_last":500,"rows_between":2000,"halvings":0,"cell_chars":16384,"cell_head_chars":4096},"cells_cut":0,"cells_raw":0,"read":"whole","date_system":"1900"}

{"sheet":"Árazótábla","index":0,"n_rows":35,"n_cols":9,"rows_kept":35,"cut":false,"hidden":false,"merged":[[0,0,0,3],[33,0,34,0],[13,1,13,8],[30,1,31,1],[24,2,24,3],[25,2,25,3],[17,0,23,0],[30,0,31,0],[33,1,34,1],[16,1,16,6],[16,7,16,8],[14,1,14,8],[27,1,28,1],[27,0,28,0]]}
["SZEGEDI TUDOMÁNYEGYETEM"]
[]
["Szegedi Tudományegyetem                ",null,null,"Kelt:     "]
["Műszai Igazgatóság                     "]
["Műszaki Üzemeltetési Részleg           ",null,null,"Készítette:                            "]
["6725 Szeged, Tisza Lajos krt. 107.     ",null,null,null,"Cégnév"]
[{"$nulls":4},"Székhely"]
[{"$nulls":4},"Kapcsolattartó"]
[{"$nulls":4},"Elérhetőség"]
[]
["Szegedi Tudományegyetem szervezeti egységein, tanszékein lévő split ill. multi klímaberendezések eseti megrendelésre történő karbantartása, tisztítása, fertőtlenítése, javítása."]
[]
[]
[null,"Kérjük, hogy az ajánlati egységárait az alábbi paraméterek szerint lebontva, tételesen a táblázat kitöltésével adja meg!                           (A táblázat az árak tekintetében képletet tartalmaz!)"]
[null,"* -jelölt oszlopban a tervezett lehívandó mennyiségek, csak tájékoztató jellegűek!  A keretszerződéses időszak alatt ténylegesen lehívásra kerülő mennyiségek előre nem tervezhetők, ezért az Megrendelő fenntartja a jogát, hogy a kiírásban megadott tervezett mennyiségektől eltérően hívja le a termékeket. Az eltérés mértéke: kb. ± 100 %. A keretszerződés időtartama alatt, a Vállalkozó vállalja, hogy az eseti igények alapján történő lehívásoknak eleget tesz és garantálja, hogy ajánlati árát a keretszerződés egész futamideje alatt tartani képes,  A felmerülő tényleges eseti igények alapján történnek a lehívások illetve megvalósulások."]
["Sorszám","Típus/Teljesítmény","Karbantartási díj","*Tervezett igény / db","Nettó egységár Ft/db","ÁFA (%)","Bruttó egységár Ft/db","Tervezett nettó összesen ár/ Ft","Tervezett bruttó összesen ár/ Ft"]
[null," légkondícionáló berendezések"]
[1,"Split légkondícionáló berendezések (1 beltéri, 1 kültéri egység)",0,1025,{"$f":"(C18)","v":0},27,{"$f":"(E18*1.27)","v":0},{"$f":"(D18*E18)","v":0},{"$f":"(H18*1.27)","v":0}]
[null,"Multi split légkondícionáló berendezések (2 beltéri, 1 kültéri egység)",0,97,0,27,{"$f":"(E19*1.27)","v":0},0,{"$f":"(H19*1.27)","v":0}]
[null,"Multi split légkondícionáló berendezések (3 beltéri, 1 kültéri egység)",0,65,0,27,0,{"$f":"(D20*E20)","v":0},0]
[null,"Multi split légkondícionáló berendezések (4 beltéri, 1 kültéri egység)",0,22,0,27,0,{"$f":"(D21*E21)","v":0},0]
[null,"Multi split légkondícionáló berendezések (5 beltéri, 1 kültéri egység)",0,11,0,27,0,0,0]
[null,"Ablakklíma",0,20,0,27,0,0,0]
[null,"Mobilklíma",0,25,{"$f":"(C24)","v":0},27,{"$f":"(E24*1.27)","v":0},{"$f":"(D24*E24)","v":0},{"$f":"(H24*1.27)","v":0}]
[null,null,"Nettó összesen:",null,{"$f":"SUM(E18:E24)","v":0},null,null,{"$f":"SUM(H18:H24)","v":0}]
[null,null,"Bruttó összesen",null,null,null,{"$f":"SUM(G18:G24)","v":0},null,{"$f":"SUM(I18:I24)","v":0}]
[]
[2,"Mosó zsákos tisztítás","Nettó díj","ÁFA (%)","Bruttó díj"]
[null,null,0,27,{"$f":"(C29*1.27)","v":0}]
[]
[3,"Javítási rezsióradíj","Nettó díj","ÁFA (%)","Bruttó díj"]
[null,null,0,27,{"$f":"(C32*1.27)","v":0}]
[]
[4,"Havária javítási rezsióradíj","Nettó díj","ÁFA (%)","Bruttó díj"]
[null,null,0,27,{"$f":"(C35*1.27)","v":0}]